Cogmind - Beta 11.1 @@@ ROGUE MODE // 2022.05.25 @ 03:03:14 Player: youngster Result: Destroyed by D-53 Grenadier with Mini Grenade Launcher Performance ------------- Evolutions (0) 0 Regions Visited (2) 400 Robots Destroyed (27) 135 Value Destroyed (525) 525 Prototype IDs (0) 0 Alien Tech Used (0) 0 Bonus (-106) -106 TOTAL SCORE: 954 Bonus ------- Follower Combat Kills 60 Friendly Fire -166 Cogmind --------- Core Integrity 0/250 Matter 232/300 Energy 96/100 System Corruption 0% Temperature Cool (0) Movement Treading (240) Ox1 Location -10/Mines Parts ------- > --- POWER (1) -------- (None) > --- PROPULSION (2) --- Light Treads Armored Wheel > --- UTILITY (2) ------ Large Storage Unit Propulsion Shielding > --- WEAPON (2) ------- Assault Rifle Assault Rifle > --- INVENTORY (15) --- Light Ion Engine Light Treads Light Treads Armored Wheel High-capacity Matter Pod (200) Transport Network Coupler Heavy EM Pulse Gun Assault Rifle Light Assault Rifle Grenade Launcher Datajack Peak State ------------ > --- POWER ------------ Ion Engine > --- PROPULSION ------- Light Treads Armored Wheel > --- UTILITY ---------- Large Storage Unit Propulsion Shielding > --- WEAPON ----------- Assault Rifle Assault Rifle > --- INVENTORY -------- Light Ion Engine Light Treads Light Treads Armored Wheel High-capacity Matter Pod Transport Network Coupler Heavy EM Pulse Gun Assault Rifle Assault Rifle Assault Rifle Light Assault Rifle Grenade Launcher Datajack [Rating: 9] Favorites ----------- Power Ion Engine Engine Ion Engine Propulsion Light Treads Treads Light Treads Wheel Armored Wheel Utility Large Storage Unit Storage Large Storage Unit Protection Light Armor Plating Weapon Assault Rifle Energy Gun EM Pulse Gun Ballistic Gun Assault Rifle Launcher Grenade Launcher Build | -11 -10 -10 ------- Run | Scr Mat Min Slots Evolved . | . . . Power . | . . . Propulsion . | . . . Utility . | . . . Weapon . | . . . Parts Attached 29 | 6 14 9 Power 2 | 1 1 . Engine 2 | 1 1 . Core . | . . . Reactor . | . . . Propulsion 7 | 2 3 2 Treads 6 | 2 3 1 Leg . | . . . Wheel 1 | . . 1 Hover . | . . . Flight . | . . . Utility 5 | 1 3 1 Device . | . . . Storage 3 | 1 2 . Processor . | . . . Hackware . | . . . Protection 2 | . 1 1 Artifact . | . . . Weapon 15 | 2 7 6 Energy Gun 1 | 1 . . Energy Cannon . | . . . Ballistic Gun 10 | 1 5 4 Ballistic Cannon . | . . . Launcher 4 | . 2 2 Special Weapon . | . . . Impact Weapon . | . . . Slashing Weapon . | . . . Piercing Weapon . | . . . Special Melee Weapon . | . . . Unidentified Prototypes . | . . . Parts Lost 5 | . . 5 Power 1 | . . 1 Propulsion 1 | . . 1 Utility 1 | . . 1 Weapon 2 | . . 2 Highest Loss Streak 4 | . . 4 To Critical Strikes . | . . . Average Slot Usage (%) 97 | . 96 99 Engine 14 | . 14 14 Treads 27 | . 28 27 Storage 15 | . 15 14 Protection 10 | . 9 14 Ballistic Gun 27 | . 27 27 Naked Turns . | . . . Heaviest Build 32 | 13 32 32 Greatest Support 40 | 40 40 40 Greatest Overweight (x) 2 | . . 2 Average Overweight (x) . | . . . Largest Inventory Capacity 15 | 8 15 15 Average Capacity 12 | 6 12 15 Most Carried 15 | 3 15 15 Average Carried 11 | 2 11 14 Final Capacity 15 | 8 15 15 Final Carried 15 | 3 15 11 Class Distribution -------------------- 100% | Mutant Dominant Class ---------------- Mutant | -10/Materials Mutant | -10/Mines Resources | -11 -10 -10 ----------- Run | Scr Mat Min Matter Collected 946 | 245 550 151 Remotely . | . . . Salvage Created 764 | . 536 228 Parts 54 | . 38 16 Haulers Intercepted 2 | . 2 . Recyclers Shooed 1 | . 1 . Parts Field Recycled . | . . . Retrieved Matter . | . . . Parts Self-Destructed . | . . . Prevented . | . . . Kills | -11 -10 -10 ------- Run | Scr Mat Min Combat Hostiles Destroyed 28 | . 15 13 Guns 17 | . 11 6 AOE 11 | . 4 7 Classes Destroyed 5 | . 4 1 Worker 1 | . 1 . Hauler 2 | . 2 . Swarmer 12 | . 6 6 Grunt 12 | . 9 3 Assembled 5 | . . 5 Best Kill Streak 5 | . 4 5 Combat Bots Only 5 | . 3 5 Max Kills in Single Turn 5 | . 3 5 Gunslinging 1 | . 1 . Exploded 4 | . 3 4 Melee . | . . . Uniques/NPCs Destroyed . | . . . Combat | -11 -10 -10 -------- Run | Scr Mat Min Damage Taken 1374 | . 512 862 Core 273 | . 71 202 Absorbed by Shields . | . . . Redirected to Shielding 30 | . . 30 Core Remaining (%) 100 | 100 . . Volleys Fired 66 | . 42 24 Largest 2 | . 2 2 Hottest 60 | . 60 40 Shots Fired 127 | . 82 45 Gun 122 | . 80 42 Cannon . | . . . Launcher 5 | . 2 3 Special . | . . . Kinetic 111 | . 69 42 Thermal . | . . . Explosive 5 | . 2 3 Electromagnetic 11 | . 11 . Robot Hit Streak 13 | . 13 7 Robot Miss Streak 4 | . 2 4 Penetration Max . | . . . Secondary Targets 3 | . 2 1 Max Gunslinging Chain 1 | . 1 1 Shots Hit Robots 85 | . 57 28 Core Hits 47 | . 29 18 Critical Kills . | . . . Critical Parts Destroyed . | . . . Critical Strikes . | . . . Melee Attacks . | . . . Impact . | . . . Slashing . | . . . Piercing . | . . . Sneak Attacks . | . . . Combat Hostiles . | . . . Follow-up Attacks . | . . . Damage Inflicted 1659 | . 966 693 Guns 1082 | . 707 375 Cannons . | . . . Explosions 531 | . 222 309 Melee . | . . . Ramming 46 | . 37 9 Kinetic 978 | . 603 375 Thermal 102 | . 102 . Explosive 429 | . 120 309 Electromagnetic 104 | . 104 . Impact . | . . . Slashing . | . . . Piercing . | . . . Highest Corruption . | . . . Average Corruption . | . . . Corruption Purged . | . . . Corruption Blocked . | . . . Overload Shots . | . . . Overflow Damage 31 | . 28 3 Projectiles . | . . . Explosions 31 | . 28 3 Melee . | . . . Knockbacks . | . . . Impact . | . . . Kinetic . | . . . Secondary . | . . . Self-Inflicted Damage 39 | . 39 . Shots 1 | . 1 . Rammed 9 | . 7 2 Targets Rammed 10 | . 8 2 Kicked . | . . . Crushed 1 | . 1 . Highest Temperature 112 | . 112 92 Average Temperature 49 | . 53 46 Received Heat Transfer 477 | . 249 228 Siege Activations . | . . . Robots Corrupted . | . . . Combat Hostiles . | . . . Parts Fried 1 | . 1 . Impact Corruptions . | . . . Robots Melted . | . . . Combat Hostiles . | . . . Parts Melted . | . . . Heat Transferred 50 | . 50 . Parts Sabotaged . | . . . Parts Stolen . | . . . Parts Stripped . | . . . Power Chain Reactions 2 | . 2 . Missiles Intercepted . | . . . Alert | -11 -10 -10 ------- Run | Scr Mat Min Peak Influence 268 | . 268 207 Initial 12 | . . 12 Average 113 | . 121 104 Maximum Alert Level 1 | . 1 1 Low Security (%) 81 | 100 84 71 Level 1 18 | . 15 28 Level 2 . | . . . Level 3 . | . . . Level 4 . | . . . Level 5 . | . . . High Security . | . . . Max Security . | . . . Squads Dispatched 4 | . 4 . Investigation 4 | . 4 . Extermination . | . . . Reinforcement . | . . . Assault . | . . . Garrison . | . . . Intercept . | . . . Searches Triggered . | . . . Construction Impeded . | . . . Haulers Reinforced . | . . . Active Scanning Responses . | . . . Cargo Convoy Interrupts . | . . . Stealth | -11 -10 -10 --------- Run | Scr Mat Min Distress Signals 2 | . 2 . Communications Jammed . | . . . Distress Signals . | . . . Times Spotted 47 | . 27 20 Peak Tracking Total 6 | . 4 6 Tactical Retreats . | . . . Traps | -11 -10 -10 ------- Run | Scr Mat Min Traps Triggered 2 | . 2 . Indirectly . | . . . Trap Hack Attempts . | . . . Triggered . | . . . Disarmed . | . . . Reprogrammed . | . . . Reused . | . . . Traps Extracted . | . . . Installed . | . . . Triggered . | . . . Machines | -11 -10 -10 ---------- Run | Scr Mat Min Machines Disabled . | . . . Max in Single Turn . | . . . Machines Sabotaged . | . . . Garrisons Compromised . | . . . Overloaded Fab Kills . | . . . Hacking | -11 -10 -10 --------- Run | Scr Mat Min Machines Accessed 10 | . 10 . Terminals 8 | . 8 . Fabricators . | . . . Repair Stations . | . . . Recycling Units 2 | . 2 . Scanalyzers . | . . . Garrison Access . | . . . Total Hacks 30 | . 30 . Successful 17 | . 17 . Failed 13 | . 13 . Catastrophic 2 | . 2 . Database Lockouts . | . . . Manual 18 | . 18 . Terminals 28 | . 28 . Fabricators . | . . . Repair Stations . | . . . Recycling Units 2 | . 2 . Scanalyzers . | . . . Garrison Access . | . . . Terminal Hacks 11 | . 11 . Part Schematic 1 | . 1 . Robot Analysis 3 | . 3 . Branch Access Points 1 | . 1 . Alert Level 1 | . 1 . Locate Traps 2 | . 2 . Transport Status 1 | . 1 . Recall Investigation 1 | . 1 . Zone Layout 1 | . 1 . Fabricator Hacks . | . . . Repair Station Hacks . | . . . Recycling Unit Hacks . | . . . Scanalyzer . | . . . Garrison Access Hacks . | . . . Unauthorized Hacks 6 | . 6 . Terminals 4 | . 4 . Track 1 | . 1 . Botnet 2 | . 2 . Operators 1 | . 1 . Fabricators . | . . . Repair Stations . | . . . Recycling Units 2 | . 2 . Tunnel 2 | . 2 . Scanalyzers . | . . . Garrison Access . | . . . Data Cores Recovered . | . . . Used . | . . . Hacking Detections 8 | . 8 . Full Trace Events 2 | . 2 . Feedback Events . | . . . Feedback Blocked . | . . . Robot Schematics Acquired . | . . . Robots Built . | . . . Authchips . | . . . Time . | . . . Total Robot Build Rating . | . . . Part Schematics Acquired 1 | . 1 . Parts Built . | . . . Authchips . | . . . Time . | . . . Total Part Build Rating . | . . . Parts Repaired . | . . . Time . | . . . Parts Recycled . | . . . Recycled Matter . | . . . Retrieved Matter . | . . . Retrieved Components . | . . . Parts Scanalyzed . | . . . Part Schematics Acquired . | . . . Parts Damaged . | . . . Bothacking | -11 -10 -10 ------------ Run | Scr Mat Min Used RIF Installer . | . . . Robots Hacked . | . . . Non-combat . | . . . Combat . | . . . Robot Hacks Applied . | . . . Relay Couplers Released . | . . . Fabnet Peak Effective % . | . . . Robots Rewired . | . . . Allies Hacked . | . . . Hacks Repelled . | . . . Allies | -11 -10 -10 -------- Run | Scr Mat Min Total Allies 3 | . . 3 Largest Group 3 | . . 3 Highest-Rated Group 40 | . . 40 Highest-Rated Ally 16 | . . 16 Total Orders . | . . . Ally Attacks 22 | . . 22 Total Damage 219 | . . 219 Kills 4 | . . 4 Allies Corrupted . | . . . Allies Melted . | . . . Intel | -11 -10 -10 ------- Run | Scr Mat Min Robot Analysis Total 3 | . 3 . Derelict Logs Recovered . | . . . Drone Launches . | . . . Drone Recoveries . | . . . Exploration | -11 -10 -10 ------------- Run | Scr Mat Min Turns Passed 2385 | 73 1629 683 Spaces Moved 1312 | 42 896 374 Core 5 | 5 . . Treads 1306 | 37 896 373 Legs . | . . . Wheels 1 | . . 1 Hover . | . . . Flight . | . . . Fastest Speed 50 | 50 160 120 Average Speed 159 | 146 160 159 Slowest Speed 160 | 160 160 160 Overloaded Moves . | . . . Propulsion Burnouts . | . . . Robots Hopped . | . . . Cave-ins Triggered . | . . . Exploration Rate (%) 55 | 4 97 64 Regions Visited 2 Branch Regions 1 Pre-discovered Areas 2 | . 2 . Known Exits Taken 1 | . 1 . Unknown Exits Taken 1 | 1 . . Scrap Searched 1 | . . 1 Spaces Dug 10 | . 5 5 Terrain Destroyed 45 | . 19 26 Melee . | . . . Projectile . | . . . AOE 45 | . 19 26 Terrain Rammed . | . . . Walls Destroyed . | . . . Machines Disabled . | . . . Actions | -11 -10 -10 --------- Run | Scr Mat Min Total 1471 | 50 1008 413 Wait 28 | . 26 2 Move 1310 | 41 895 374 Hop . | . . . Pick Up 18 | 3 14 1 Fast Attach 8 | 6 2 . Attach 4 | . . 4 Detach . | . . . Swap 17 | . 12 5 Drop 10 | . 9 1 Fire 66 | . 42 24 Melee . | . . . Ram . | . . . Kick . | . . . Crush 10 | . 8 2 Escape Stasis . | . . . Rewire . | . . . Trap . | . . . Miscellaneous . | . . . Route ------- -11/Scrapyard -10/Materials (discovered 4 exits: [*Mat x3] / *Min) -10/Mines (discovered 1 exit: [*Mat]) History --------- Turn | Location | Event 16 | -11/Scrapyard | Discovered new exit (range 13) 74 | -11/Scrapyard | Entered Materials 97 | -10/Materials | Discovered new exit (range 14) 311 | -10/Materials | Build established: Mutant 396 | -10/Materials | Discovered new exit (range 5) 839 | -10/Materials | Identified exit to Mines 845 | -10/Materials | Discovered new exit (range 5) 1151 | -10/Materials | Discovered new exit (range 4) 1703 | -10/Materials | Entered Mines 1756 | -10/Mines | Core integrity fell below 50% 1814 | -10/Mines | Discovered new exit (range 6) 1964 | -10/Mines | Assisted by bots powering up and referring to "LRC-V3" 2330 | -10/Mines | Assembled infested the area 2335 | -10/Mines | Assisted by a Guerilla fighting off Assembled 2383 | -10/Mines | Core integrity fell below 20% 2386 | -10/Mines | Destroyed by D-53 Grenadier with Mini Grenade Launcher Last Messages --------------- 02358_ U-05 Engineer builds a Wall. 02367_ as-67867 sneak attacks. 02367_ T-07 Excavator destroyed. 02369_ Trooper 1a destroyed. 02370_ as-55094 destroyed. 02370_ as-03032 destroyed. 02370_ as-67867 destroyed. 02370_ Destroyed Asb. Hover Unit. 02370_ as-04644 destroyed. 02370_ Trooper 1b destroyed. 02373_ as-32715 destroyed. 02375_ as-59262 destroyed. 02376_ The unstable cave ceiling collapses. 02377_ C-30 ARC bursts open, deploying its payload. 02377_ D-53 Grenadier unfolds itself. 02377_ Lgt. Treads destroyed. 02379_ Assault Rifle destroyed. 02379_ Mercenary 1a destroyed. 02380_ The unstable cave ceiling collapses. 02381_ Ion Engine destroyed. Map ----- +----------------------------------------------------+ | | | | | | | | | | | | | | | | | | | | | | | | | | | | | | | | | | | ?????????????????????????????????????????????????? | | ?????????????????????????????????????????????????? | | ???????????????????????????????????????????##????? | | ??????????????????????##?####????????????# ##???? | | ?????????????????????## # ##??????## ## #???? | | ????????????###?????## ##??? # %% #???? | | ??????????## ##????# ## a !%%= ??????? | | ??####????# #???## = #?????????? | | ?## ##???# #???# @ a=%[% # #??????? | | ?# #??## #????# d %*%!% #????????? | | ?# #??# #????## d %= #?????????? | | ?# #???# ##??### ## ####?????????? | | ## #???# ##?## ##?####????????????? | | # #???## ### ########??????????????????? | | ##????# #?????????????????????????? | | #?????# #?????????????????????????? | | ##????# #?????????????????????????? | | ###### ## ##?????????????????????????? | | ## #### ##??????????????????????????? | | #??###???????????????????????????? | | # ##????????????????????????????????? | | # ## % ##?????????????????????????????????? | | # #### % ##??????????????????????????????????? | | # ##??## #???????????????????????????????????? | | # ##???## ##???????????????????????????????????? | | % #????# #????????????????????????????????????? | | # #????# ##???????????????????????????????????? | | # #????# #???????????????????????????????????? | | # #????# #???????????????????????????????????? | | # #????## ##???????????????????????????????????? | | # #?????####????????????????????????????????????? | | # ####??????????????????????????????????????????? | | # #??????????????????????????????????????????? | +----------------------------------------------------+ Best States ------------- Heat Dissipation 25 Energy Generation 10 Energy Capacity 250 Matter Stores 300 Matter Capacity 300 Sight Range 16 Terrain Scan Density 10 Armor Coverage 150 Propulsion Shielding 33 Evasion (%) 40 Recoil Reduction 2 Item Schematics ----------------- Huge Storage Unit | -10/Materials | Hacked Robot Schematics ------------------ None Fabricated ------------ Nothing Alien Tech Used ----------------- None Achievements -------------- None Challenges ------------ None Game ------ Seed RelayConcussiveCanceller Manual? 0 Play Time 00:16:47 Cumulative 305.1 hours Start 2022.05.24 @ 19:21:15 End 2022.05.25 @ 03:03:14 Sessions 2 Manual Loads 0 Difficulty Rogue Special Mode None Game No. 132 Rogue 132 Adventurer 0 Explorer 0 Win Type - Total 8 Types 5/0/1/1/0/0/0/1/0 Lore% 88 Gallery% 90 Achievement% 70 Wizard Run 0 Options --------- ASCII 1 Keyboard 1 Movement Vi Keybinds 0 Fullscreen 2 Font 18/Cog Map View 76x50 Tactical HUD 1 Map Filters NONE Filters NONE Steam 0 RUN: 3a2027b5-40de-42fe-ad7c-f50a6cf50f6e